[Event "*** MasterClass Titled Tuesday Blitz"]
[Site "Chess.com"]
[Date "2017.07.04"]
[Round "8"]
[White "michaelk123"]
[Black "Vamostodorecto"]
[Result "1/2-1/2"]
[WhiteElo "2276"]
[BlackElo "2340"]
[TimeControl "180+2"]
[EndTime "14:57:11 PDT"]
[Termination "Game drawn - insufficient material"]

1. e4 {[%clk 0:03:01.9]} 1... g6 {[%clk 0:03:00.1]} 2. d4 {[%clk 0:03:02.2]}
2... Bg7 {[%clk 0:03:01.1]} 3. Nc3 {[%clk 0:02:59.4]} 3... d6 {[%clk 0:03:01.7]}
4. h3 {[%clk 0:02:54.6]} 4... a6 {[%clk 0:03:02.1]} 5. a4 {[%clk 0:02:54.1]}
5... Nd7 {[%clk 0:02:56.4]} 6. Nf3 {[%clk 0:02:54.2]} 6... c5 {[%clk 0:02:53.3]}
7. d5 {[%clk 0:02:53.7]} 7... Ngf6 {[%clk 0:02:48.2]} 8. Be3 {[%clk 0:02:52.6]}
8... Qa5 {[%clk 0:02:46.8]} 9. Nd2 {[%clk 0:02:51.4]} 9... Rb8 {[%clk
0:02:28.9]} 10. Ra3 {[%clk 0:02:47.6]} 10... O-O {[%clk 0:02:26.1]} 11. Be2
{[%clk 0:02:45.6]} 11... Qc7 {[%clk 0:02:17.7]} 12. O-O {[%clk 0:02:44.8]} 12...
Re8 {[%clk 0:02:05.5]} 13. Bf4 {[%clk 0:02:23.6]} 13... Ne5 {[%clk 0:01:59.4]}
14. Bh2 {[%clk 0:02:01.5]} 14... g5 {[%clk 0:01:45.1]} 15. Re1 {[%clk
0:01:50.1]} 15... Bd7 {[%clk 0:01:32.8]} 16. a5 {[%clk 0:01:32.4]} 16... Ng6
{[%clk 0:01:26.4]} 17. Nc4 {[%clk 0:01:28.5]} 17... Bb5 {[%clk 0:01:21.4]} 18.
Ne3 {[%clk 0:01:26.6]} 18... Bxe2 {[%clk 0:01:14.5]} 19. Qxe2 {[%clk 0:01:26.9]}
19... e6 {[%clk 0:01:12.5]} 20. dxe6 {[%clk 0:01:24.4]} 20... fxe6 {[%clk
0:01:14.4]} 21. Nc4 {[%clk 0:01:22.8]} 21... Nf4 {[%clk 0:01:04.1]} 22. Bxf4
{[%clk 0:01:20.9]} 22... gxf4 {[%clk 0:01:05.6]} 23. e5 {[%clk 0:01:22.7]} 23...
dxe5 {[%clk 0:01:02]} 24. Nxe5 {[%clk 0:01:24.6]} 24... Nd5 {[%clk 0:00:59.7]}
25. Qe4 {[%clk 0:01:12.6]} 25... Rbd8 {[%clk 0:00:51.6]} 26. Rb3 {[%clk
0:01:06]} 26... Re7 {[%clk 0:00:42.8]} 27. Kh2 {[%clk 0:01:05.9]} 27... Qxa5
{[%clk 0:00:35.5]} 28. Nc4 {[%clk 0:01:04.5]} 28... Nxc3 {[%clk 0:00:31]} 29.
Nxa5 {[%clk 0:00:59.7]} 29... Nxe4 {[%clk 0:00:31.8]} 30. Rxe4 {[%clk
0:01:01.6]} 30... Rd4 {[%clk 0:00:29.2]} 31. Rxd4 {[%clk 0:01:00]} 31... Bxd4
{[%clk 0:00:31.1]} 32. Nxb7 {[%clk 0:00:56.2]} 32... Bxf2 {[%clk 0:00:29.8]} 33.
Nd6 {[%clk 0:00:56.7]} 33... Bg3+ {[%clk 0:00:29.3]} 34. Kg1 {[%clk 0:00:54.8]}
34... Rd7 {[%clk 0:00:27.6]} 35. Rd3 {[%clk 0:00:55]} 35... f3 {[%clk
0:00:17.9]} 36. Ne4 {[%clk 0:00:51.4]} 36... Rxd3 {[%clk 0:00:17.9]} 37. cxd3
{[%clk 0:00:53.3]} 37... Be5 {[%clk 0:00:17.6]} 38. gxf3 {[%clk 0:00:46.8]}
38... Bxb2 {[%clk 0:00:17.8]} 39. Kf1 {[%clk 0:00:41.3]} 39... Bd4 {[%clk
0:00:17.2]} 40. Nd6 {[%clk 0:00:39.3]} 40... a5 {[%clk 0:00:16.7]} 41. Nc4
{[%clk 0:00:40.8]} 41... a4 {[%clk 0:00:16.9]} 42. Ke2 {[%clk 0:00:40.1]} 42...
Kf7 {[%clk 0:00:17.4]} 43. Kd2 {[%clk 0:00:36.4]} 43... Kf6 {[%clk 0:00:18]} 44.
Kc2 {[%clk 0:00:34.1]} 44... Kf5 {[%clk 0:00:17.6]} 45. Nb6 {[%clk 0:00:32.9]}
45... Kf4 {[%clk 0:00:16.2]} 46. Nxa4 {[%clk 0:00:32.3]} 46... Kxf3 {[%clk
0:00:16.8]} 47. Kd2 {[%clk 0:00:30.5]} 47... Kg3 {[%clk 0:00:17.6]} 48. Ke2
{[%clk 0:00:30.9]} 48... Kxh3 {[%clk 0:00:18.6]} 49. Kf3 {[%clk 0:00:32.1]}
49... Kh4 {[%clk 0:00:17.6]} 50. Nb6 {[%clk 0:00:32.9]} 50... Kg5 {[%clk
0:00:16.9]} 51. Nc4 {[%clk 0:00:33.2]} 51... h5 {[%clk 0:00:16.7]} 52. Nd6
{[%clk 0:00:33.9]} 52... h4 {[%clk 0:00:15.9]} 53. Ne4+ {[%clk 0:00:34.8]} 53...
Kf5 {[%clk 0:00:14.9]} 54. Nd6+ {[%clk 0:00:34.8]} 54... Kf6 {[%clk 0:00:14.7]}
55. Kg4 {[%clk 0:00:35.2]} 55... Ke7 {[%clk 0:00:10.7]} 56. Ne4 {[%clk
0:00:34.5]} 56... Bf6 {[%clk 0:00:10.8]} 57. Nxc5 {[%clk 0:00:34.9]} 57... Bd4
{[%clk 0:00:09.9]} 58. Ne4 {[%clk 0:00:33.7]} 58... e5 {[%clk 0:00:10.2]} 59.
Kxh4 {[%clk 0:00:33.7]} 59... Ke6 {[%clk 0:00:12.1]} 60. Kg4 {[%clk 0:00:35]}
60... Kd5 {[%clk 0:00:13.2]} 61. Kf3 {[%clk 0:00:35.8]} 61... Bb2 {[%clk
0:00:12.9]} 62. Ke2 {[%clk 0:00:34.7]} 62... Bd4 {[%clk 0:00:13.4]} 63. Nd2
{[%clk 0:00:35]} 63... Ke6 {[%clk 0:00:13.7]} 64. Kf3 {[%clk 0:00:35.6]} 64...
Kf5 {[%clk 0:00:14.2]} 65. Nc4 {[%clk 0:00:35.7]} 65... Ke6 {[%clk 0:00:14.9]}
66. Ke4 {[%clk 0:00:36.3]} 66... Ba1 {[%clk 0:00:15.5]} 67. Nd2 {[%clk 0:00:37]}
67... Bd4 {[%clk 0:00:15.9]} 68. Nf3 {[%clk 0:00:38.2]} 68... Ba1 {[%clk
0:00:16.2]} 69. Ne1 {[%clk 0:00:38.1]} 69... Bd4 {[%clk 0:00:16.4]} 70. Nc2
{[%clk 0:00:37.7]} 70... Bb2 {[%clk 0:00:17.1]} 71. Nb4 {[%clk 0:00:37.3]} 71...
Bd4 {[%clk 0:00:16.8]} 72. Nc6 {[%clk 0:00:38]} 72... Bb2 {[%clk 0:00:16.4]} 73.
Na5 {[%clk 0:00:34.5]} 73... Bd4 {[%clk 0:00:15.7]} 74. Nb3 {[%clk 0:00:35.2]}
74... Bb2 {[%clk 0:00:16]} 75. Nc5+ {[%clk 0:00:35.8]} 75... Kd6 {[%clk
0:00:15.9]} 76. Na4 {[%clk 0:00:36.7]} 76... Ba1 {[%clk 0:00:16]} 77. Ke3 {[%clk
0:00:35.5]} 77... Bd4+ {[%clk 0:00:15.7]} 78. Ke4 {[%clk 0:00:35.4]} 78... Ba1
{[%clk 0:00:17.6]} 79. Nb6 {[%clk 0:00:34.9]} 79... Bd4 {[%clk 0:00:14.4]} 80.
Nd5 {[%clk 0:00:35.2]} 80... Ba1 {[%clk 0:00:14.2]} 81. Nf6 {[%clk 0:00:36.1]}
81... Ke6 {[%clk 0:00:14.4]} 82. Ng4 {[%clk 0:00:36.8]} 82... Kd6 {[%clk
0:00:15]} 83. Ne3 {[%clk 0:00:38.2]} 83... Ke6 {[%clk 0:00:16]} 84. Nc2 {[%clk
0:00:38.2]} 84... Bc3 {[%clk 0:00:17]} 85. Ne3 {[%clk 0:00:38.8]} 85... Ba1
{[%clk 0:00:17.4]} 86. Nc2 {[%clk 0:00:38.5]} 86... Bb2 {[%clk 0:00:17.5]} 87.
d4 {[%clk 0:00:36]} 87... exd4 {[%clk 0:00:16.2]} 88. Nxd4+ {[%clk 0:00:37]}
88... Bxd4 {[%clk 0:00:13]} 1/2-1/2

[Event "*** MasterClass Titled Tuesday Blitz"]
[Site "Chess.com"]
[Date "2017.07.04"]
[Round "9"]
[White "aspired"]
[Black "dhanushbharadwaj"]
[Result "1/2-1/2"]
[WhiteElo "2512"]
[BlackElo "2358"]
[TimeControl "180+2"]
[EndTime "15:03:01 PDT"]
[Termination "Game drawn by agreement"]

1. e4 {[%clk 0:03:01.9]} 1... c6 {[%clk 0:02:59.7]} 2. Nf3 {[%clk 0:03:02.8]}
2... d5 {[%clk 0:03:00.4]} 3. exd5 {[%clk 0:03:04.7]} 3... cxd5 {[%clk
0:03:02.3]} 4. Ne5 {[%clk 0:03:06.3]} 4... Nc6 {[%clk 0:03:01.5]} 5. d4 {[%clk
0:03:07.9]} 5... e6 {[%clk 0:03:00.1]} 6. Bb5 {[%clk 0:03:07.3]} 6... Bd7 {[%clk
0:02:59.2]} 7. Nxd7 {[%clk 0:03:07.1]} 7... Qxd7 {[%clk 0:02:59.4]} 8. c3 {[%clk
0:03:07.6]} 8... Nf6 {[%clk 0:02:59.8]} 9. O-O {[%clk 0:03:05]} 9... Bd6 {[%clk
0:02:56.2]} 10. Nd2 {[%clk 0:03:03.4]} 10... O-O {[%clk 0:02:56.7]} 11. f4
{[%clk 0:03:03]} 11... a6 {[%clk 0:02:57.8]} 12. Bd3 {[%clk 0:03:03.1]} 12... b5
{[%clk 0:02:56.1]} 13. Qe2 {[%clk 0:02:55.7]} 13... b4 {[%clk 0:02:55.3]} 14.
Bxa6 {[%clk 0:02:53.6]} 14... bxc3 {[%clk 0:02:56.1]} 15. bxc3 {[%clk
0:02:55.3]} 15... Qa7 {[%clk 0:02:48.4]} 16. Bd3 {[%clk 0:02:27.6]} 16... Nxd4
{[%clk 0:02:46.7]} 17. cxd4 {[%clk 0:02:29.5]} 17... Qxd4+ {[%clk 0:02:48.2]}
18. Rf2 {[%clk 0:02:26.2]} 18... Qxa1 {[%clk 0:02:49.1]} 19. Nb3 {[%clk
0:02:27]} 19... Qc3 {[%clk 0:02:35.7]} 20. Bb2 {[%clk 0:02:27.3]} 20... Qb4
{[%clk 0:02:26.9]} 21. Bxf6 {[%clk 0:02:22.7]} 21... gxf6 {[%clk 0:02:28.8]} 22.
Bxh7+ {[%clk 0:01:55.8]} 22... Kxh7 {[%clk 0:02:27.6]} 23. Qh5+ {[%clk
0:01:55.2]} 23... Kg7 {[%clk 0:02:27.4]} 24. Qg4+ {[%clk 0:01:52.9]} 24... Kh7
{[%clk 0:02:24.6]} 25. Qh4+ {[%clk 0:01:46.3]} 25... Kg8 {[%clk 0:02:18.2]} 26.
Qg3+ {[%clk 0:01:06.6]} 26... Kh7 {[%clk 0:02:15.6]} 27. Qh4+ {[%clk 0:00:59.8]}
27... Kg8 {[%clk 0:02:15.5]} 1/2-1/2

[Event "*** MasterClass Titled Tuesday Blitz"]
[Site "Chess.com"]
[Date "2017.07.04"]
[Round "9"]
[White "Iball95"]
[Black "ChessQueen"]
[Result "0-1"]
[WhiteElo "2518"]
[BlackElo "2540"]
[TimeControl "180+2"]
[EndTime "15:03:33 PDT"]
[Termination "ChessQueen won by resignation"]

1. d4 {[%clk 0:03:01.9]} 1... Nf6 {[%clk 0:02:59.6]} 2. Nf3 {[%clk 0:03:01.1]}
2... b6 {[%clk 0:02:57.5]} 3. Bf4 {[%clk 0:02:57.5]} 3... Bb7 {[%clk 0:02:57.4]}
4. e3 {[%clk 0:02:59]} 4... e6 {[%clk 0:02:55.9]} 5. Bd3 {[%clk 0:02:59]} 5...
d5 {[%clk 0:02:52.2]} 6. O-O {[%clk 0:02:58.8]} 6... Bd6 {[%clk 0:02:53.2]} 7.
Bg3 {[%clk 0:02:59.3]} 7... Nbd7 {[%clk 0:02:47.9]} 8. Nbd2 {[%clk 0:02:58.8]}
8... Qe7 {[%clk 0:02:47.4]} 9. Ne5 {[%clk 0:02:57.3]} 9... Ne4 {[%clk
0:02:38.7]} 10. Bxe4 {[%clk 0:02:52.6]} 10... dxe4 {[%clk 0:02:39.2]} 11. Ndc4
{[%clk 0:02:52.4]} 11... Bxe5 {[%clk 0:02:19.5]} 12. Nxe5 {[%clk 0:02:43.5]}
12... Nxe5 {[%clk 0:02:18.9]} 13. Bxe5 {[%clk 0:02:45.2]} 13... O-O {[%clk
0:02:18.3]} 14. c4 {[%clk 0:02:39.5]} 14... Rad8 {[%clk 0:02:15.5]} 15. Qc2
{[%clk 0:02:36.9]} 15... f6 {[%clk 0:02:10]} 16. Bg3 {[%clk 0:02:34.9]} 16... c5
{[%clk 0:02:09.3]} 17. Rfd1 {[%clk 0:02:24.6]} 17... cxd4 {[%clk 0:01:42.9]} 18.
exd4 {[%clk 0:02:18.5]} 18... f5 {[%clk 0:01:43.2]} 19. Be5 {[%clk 0:02:16.2]}
19... f4 {[%clk 0:01:44.2]} 20. Re1 {[%clk 0:01:40.8]} 20... Qg5 {[%clk
0:01:35.6]} 21. Kh1 {[%clk 0:01:34.7]} 21... Qg6 {[%clk 0:01:24.1]} 22. b4
{[%clk 0:00:57.7]} 22... Rf5 {[%clk 0:01:20.8]} 23. Rxe4 {[%clk 0:00:53.5]}
23... Rxe5 {[%clk 0:01:17.2]} 0-1

[Event "*** MasterClass Titled Tuesday Blitz"]
[Site "Chess.com"]
[Date "2017.07.04"]
[Round "9"]
[White "popov_m"]
[Black "Msb2"]
[Result "0-1"]
[WhiteElo "2408"]
[BlackElo "2560"]
[TimeControl "180+2"]
[EndTime "15:04:32 PDT"]
[Termination "Msb2 won by resignation"]

1. d4 {[%clk 0:03:01.9]} 1... Nf6 {[%clk 0:03:00]} 2. Bf4 {[%clk 0:03:02.5]}
2... d5 {[%clk 0:03:00.1]} 3. e3 {[%clk 0:03:02.7]} 3... c5 {[%clk 0:03:01.6]}
4. Nd2 {[%clk 0:03:03.8]} 4... Nc6 {[%clk 0:03:02.8]} 5. c3 {[%clk 0:03:02.6]}
5... Bf5 {[%clk 0:03:01.7]} 6. Ngf3 {[%clk 0:03:01.9]} 6... Qb6 {[%clk 0:03:00]}
7. dxc5 {[%clk 0:02:53.1]} 7... Qxb2 {[%clk 0:02:59.4]} 8. Nd4 {[%clk
0:02:54.6]} 8... Bg4 {[%clk 0:02:57.8]} 9. f3 {[%clk 0:02:49.7]} 9... e5 {[%clk
0:02:57.1]} 10. Rb1 {[%clk 0:02:38.7]} 10... Qa3 {[%clk 0:02:57.7]} 11. fxg4
{[%clk 0:01:43.4]} 11... exf4 {[%clk 0:02:57.3]} 12. Rxb7 {[%clk 0:01:43.5]}
12... Bxc5 {[%clk 0:01:40.7]} 13. Bb5 {[%clk 0:01:29.2]} 13... O-O {[%clk
0:01:39.5]} 14. Bxc6 {[%clk 0:01:27.3]} 14... fxe3 {[%clk 0:01:40.5]} 15. N2b3
{[%clk 0:01:27.3]} 15... Rac8 {[%clk 0:01:34]} 16. Bb5 {[%clk 0:01:14.3]} 16...
Qxa2 {[%clk 0:01:29.7]} 17. O-O {[%clk 0:01:12.6]} 17... Ne4 {[%clk 0:01:23.2]}
18. Qd3 {[%clk 0:01:01.2]} 18... e2 {[%clk 0:00:44.2]} 19. Re1 {[%clk
0:00:55.1]} 19... Qxb3 {[%clk 0:00:44.6]} 20. Bc6 {[%clk 0:00:23.6]} 20... Qxc3
{[%clk 0:00:42.8]} 21. Qxc3 {[%clk 0:00:19.1]} 21... Nxc3 {[%clk 0:00:44.7]} 0-1

[Event "*** MasterClass Titled Tuesday Blitz"]
[Site "Chess.com"]
[Date "2017.07.04"]
[Round "9"]
[White "GMAkobianSTL"]
[Black "SuperCheese"]
[Result "0-1"]
[WhiteElo "2543"]
[BlackElo "2439"]
[TimeControl "180+2"]
[EndTime "15:04:34 PDT"]
[Termination "SuperCheese won by resignation"]

1. d4 {[%clk 0:03:01.9]} 1... Nf6 {[%clk 0:03:00.3]} 2. c4 {[%clk 0:03:02.9]}
2... e6 {[%clk 0:03:01.6]} 3. Nf3 {[%clk 0:03:03.5]} 3... d5 {[%clk 0:03:02.6]}
4. Nc3 {[%clk 0:03:04.1]} 4... Bb4 {[%clk 0:03:03.4]} 5. cxd5 {[%clk 0:03:05]}
5... exd5 {[%clk 0:03:03.9]} 6. Qa4+ {[%clk 0:03:06.5]} 6... Nc6 {[%clk
0:03:04.4]} 7. Bg5 {[%clk 0:03:08]} 7... h6 {[%clk 0:03:04.6]} 8. Bxf6 {[%clk
0:03:09.2]} 8... Qxf6 {[%clk 0:03:06.5]} 9. e3 {[%clk 0:03:10.6]} 9... O-O
{[%clk 0:03:06.9]} 10. Rc1 {[%clk 0:03:11.1]} 10... Be6 {[%clk 0:03:03.9]} 11.
Bb5 {[%clk 0:03:09.6]} 11... Bd7 {[%clk 0:01:45.8]} 12. O-O {[%clk 0:02:53.7]}
12... Bxc3 {[%clk 0:01:45.5]} 13. Rxc3 {[%clk 0:02:54.2]} 13... a6 {[%clk
0:01:46.4]} 14. Bxc6 {[%clk 0:02:55]} 14... Bxc6 {[%clk 0:01:46.9]} 15. Qb3
{[%clk 0:02:55.6]} 15... Bb5 {[%clk 0:01:33]} 16. Rfc1 {[%clk 0:02:55.9]} 16...
c6 {[%clk 0:01:33]} 17. a4 {[%clk 0:02:50.3]} 17... Be2 {[%clk 0:01:33.1]} 18.
Ne5 {[%clk 0:02:48.5]} 18... Qe7 {[%clk 0:01:30.4]} 19. f3 {[%clk 0:02:42.9]}
19... Rfe8 {[%clk 0:01:11.5]} 20. Kf2 {[%clk 0:02:35.7]} 20... f6 {[%clk
0:01:09.7]} 21. Ng6 {[%clk 0:02:36.1]} 21... Qf7 {[%clk 0:01:08.3]} 22. Nf4
{[%clk 0:02:37.1]} 22... Bc4 {[%clk 0:01:08.7]} 23. Qc2 {[%clk 0:02:34.9]} 23...
g5 {[%clk 0:01:05.5]} 24. Nd3 {[%clk 0:02:18.5]} 24... Bxd3 {[%clk 0:01:03.2]}
25. Qxd3 {[%clk 0:02:19.2]} 25... Rad8 {[%clk 0:00:55.4]} 26. Qf5 {[%clk
0:02:18.6]} 26... Kg7 {[%clk 0:00:54.1]} 27. a5 {[%clk 0:02:18]} 27... Qe6
{[%clk 0:00:53.6]} 28. g4 {[%clk 0:02:11.1]} 28... Rd7 {[%clk 0:00:50.8]} 29. h4
{[%clk 0:02:08.5]} 29... Rde7 {[%clk 0:00:48.8]} 30. Qxe6 {[%clk 0:02:02.4]}
30... Rxe6 {[%clk 0:00:49.5]} 31. hxg5 {[%clk 0:02:03.7]} 31... hxg5 {[%clk
0:00:49.4]} 32. Rb3 {[%clk 0:02:03.3]} 32... R6e7 {[%clk 0:00:50]} 33. Rcc3
{[%clk 0:02:03.6]} 33... Rh8 {[%clk 0:00:49.9]} 34. Ke2 {[%clk 0:01:47.8]} 34...
Rh2+ {[%clk 0:00:43.3]} 35. Kd3 {[%clk 0:01:47.5]} 35... Rf2 {[%clk 0:00:40.9]}
36. Rb4 {[%clk 0:01:47.7]} 36... Rxf3 {[%clk 0:00:40.7]} 37. Ke2 {[%clk
0:01:48.8]} 37... Rh3 {[%clk 0:00:39.2]} 38. Rcb3 {[%clk 0:01:49.1]} 38... Kg6
{[%clk 0:00:39.5]} 39. Rxb7 {[%clk 0:01:49]} 39... Rhxe3+ {[%clk 0:00:40.2]} 40.
Rxe3 {[%clk 0:01:48]} 40... Rxb7 {[%clk 0:00:41.3]} 41. b3 {[%clk 0:01:49.2]}
41... Rb4 {[%clk 0:00:41.1]} 42. Kd3 {[%clk 0:01:49.1]} 42... Rxb3+ {[%clk
0:00:41.1]} 0-1

[Event "*** MasterClass Titled Tuesday Blitz"]
[Site "Chess.com"]
[Date "2017.07.04"]
[Round "9"]
[White "SergeiAza"]
[Black "AkshatChandra"]
[Result "1/2-1/2"]
[WhiteElo "2721"]
[BlackElo "2677"]
[TimeControl "180+2"]
[EndTime "15:04:42 PDT"]
[Termination "Game drawn by agreement"]

1. e4 {[%clk 0:03:01.8]} 1... e6 {[%clk 0:02:53.7]} 2. d4 {[%clk 0:03:01.8]}
2... d5 {[%clk 0:02:55.3]} 3. Nd2 {[%clk 0:03:02.2]} 3... c5 {[%clk 0:02:56.5]}
4. Ngf3 {[%clk 0:03:01.8]} 4... cxd4 {[%clk 0:02:55.1]} 5. Nxd4 {[%clk
0:03:02.2]} 5... Nf6 {[%clk 0:02:54.5]} 6. exd5 {[%clk 0:03:00.5]} 6... Qxd5
{[%clk 0:02:56.4]} 7. N4f3 {[%clk 0:02:47]} 7... Nc6 {[%clk 0:02:49.7]} 8. Bc4
{[%clk 0:02:46]} 8... Qd6 {[%clk 0:02:46.7]} 9. O-O {[%clk 0:02:44.6]} 9... Be7
{[%clk 0:02:48]} 10. Qe2 {[%clk 0:02:30.1]} 10... O-O {[%clk 0:02:48.3]} 11. Rd1
{[%clk 0:02:30.3]} 11... Qc7 {[%clk 0:02:46.5]} 12. Ne4 {[%clk 0:02:26.8]} 12...
b6 {[%clk 0:02:46.8]} 13. Bg5 {[%clk 0:02:20.2]} 13... Nxe4 {[%clk 0:02:45.6]}
14. Qxe4 {[%clk 0:02:20.3]} 14... Bb7 {[%clk 0:02:38.6]} 15. Bd3 {[%clk
0:02:14.9]} 15... g6 {[%clk 0:02:37.9]} 16. Qh4 {[%clk 0:02:01.8]} 16... h5
{[%clk 0:02:30.1]} 17. Re1 {[%clk 0:01:56.2]} 17... Bxg5 {[%clk 0:01:24.1]} 18.
Nxg5 {[%clk 0:01:42.8]} 18... Qe7 {[%clk 0:01:23.8]} 19. Qg3 {[%clk 0:01:42.4]}
19... Rad8 {[%clk 0:01:13.3]} 20. Re3 {[%clk 0:01:22.9]} 20... Qf6 {[%clk
0:01:09.1]} 21. Rae1 {[%clk 0:01:19.5]} 21... Nd4 {[%clk 0:01:03.1]} 22. h4
{[%clk 0:01:14.5]} 22... Nf5 {[%clk 0:00:58]} 23. Bxf5 {[%clk 0:01:14.2]} 23...
Qxf5 {[%clk 0:00:58.3]} 24. Re5 {[%clk 0:00:52.1]} 24... Qg4 {[%clk 0:00:48.6]}
25. Qxg4 {[%clk 0:00:35.2]} 25... hxg4 {[%clk 0:00:50.5]} 26. R5e2 {[%clk
0:00:34.2]} 1/2-1/2

[Event "*** MasterClass Titled Tuesday Blitz"]
[Site "Chess.com"]
[Date "2017.07.04"]
[Round "9"]
[White "Rodalquilar"]
[Black "1e41-0"]
[Result "1-0"]
[WhiteElo "2516"]
[BlackElo "2280"]
[TimeControl "180+2"]
[EndTime "15:05:10 PDT"]
[Termination "Rodalquilar won by resignation"]

1. d4 {[%clk 0:03:01.9]} 1... d5 {[%clk 0:03:00.2]} 2. Bf4 {[%clk 0:03:03]} 2...
Nf6 {[%clk 0:03:00.8]} 3. e3 {[%clk 0:03:04.3]} 3... e6 {[%clk 0:03:01.2]} 4.
Nd2 {[%clk 0:03:02.8]} 4... c5 {[%clk 0:03:02.5]} 5. c3 {[%clk 0:03:03.5]} 5...
Qb6 {[%clk 0:03:03.7]} 6. Qb3 {[%clk 0:03:03.2]} 6... c4 {[%clk 0:03:03.8]} 7.
Qc2 {[%clk 0:03:02.7]} 7... Nc6 {[%clk 0:03:04.8]} 8. e4 {[%clk 0:03:01.8]} 8...
Be7 {[%clk 0:03:04]} 9. Ngf3 {[%clk 0:03:00.6]} 9... O-O {[%clk 0:03:03.2]} 10.
Be2 {[%clk 0:02:53.4]} 10... Bd7 {[%clk 0:03:03.4]} 11. O-O {[%clk 0:02:54.3]}
11... a5 {[%clk 0:03:04.1]} 12. b3 {[%clk 0:02:54.9]} 12... cxb3 {[%clk
0:03:00.9]} 13. axb3 {[%clk 0:02:56.8]} 13... dxe4 {[%clk 0:02:59.8]} 14. Nxe4
{[%clk 0:02:57.8]} 14... Nd5 {[%clk 0:03:00.3]} 15. Neg5 {[%clk 0:02:37.2]}
15... g6 {[%clk 0:02:49.5]} 16. Bd2 {[%clk 0:02:37.6]} 16... Rac8 {[%clk
0:02:48.1]} 17. Qd3 {[%clk 0:02:14.9]} 17... Rfd8 {[%clk 0:02:33.8]} 18. Rab1
{[%clk 0:01:47.2]} 18... Bf6 {[%clk 0:02:14.6]} 19. Qe4 {[%clk 0:01:30.5]} 19...
Nce7 {[%clk 0:02:09.9]} 20. c4 {[%clk 0:01:30]} 20... Nb4 {[%clk 0:02:08]} 21.
Qf4 {[%clk 0:01:30.9]} 21... Bxg5 {[%clk 0:01:27.7]} 22. Nxg5 {[%clk 0:01:31.9]}
22... Rf8 {[%clk 0:01:21.8]} 23. Qh4 {[%clk 0:01:27.8]} 23... h5 {[%clk
0:01:20.7]} 24. Bxh5 {[%clk 0:01:25]} 24... Nf5 {[%clk 0:01:20.2]} 25. Qh3
{[%clk 0:01:26.3]} 25... gxh5 {[%clk 0:01:03.5]} 26. Qxh5 {[%clk 0:01:28.2]}
26... Kg7 {[%clk 0:01:04.7]} 27. Qh7+ {[%clk 0:01:07.3]} 27... Kf6 {[%clk
0:01:03.8]} 28. Ne4+ {[%clk 0:01:09.2]} 28... Ke7 {[%clk 0:01:04.5]} 29. Bg5+
{[%clk 0:01:11.1]} 29... Ke8 {[%clk 0:01:01.2]} 30. Nf6+ {[%clk 0:01:12.5]}
30... Kd8 {[%clk 0:01:02.4]} 31. Nd5+ {[%clk 0:01:13.9]} 31... f6 {[%clk
0:01:03.4]} 32. Nxb6 {[%clk 0:01:13.5]} 32... Rc7 {[%clk 0:01:02.3]} 33. Bf4
{[%clk 0:01:06.3]} 33... e5 {[%clk 0:00:57.3]} 34. dxe5 {[%clk 0:01:06.4]} 34...
Nd4 {[%clk 0:00:57]} 35. e6 {[%clk 0:00:59.6]} 35... Ne2+ {[%clk 0:00:56.4]} 36.
Kh1 {[%clk 0:01:00.9]} 36... Nxf4 {[%clk 0:00:58.3]} 37. e7+ {[%clk 0:01:02.2]}
37... Ke8 {[%clk 0:00:59.4]} 38. exf8=Q+ {[%clk 0:01:03.5]} 38... Kxf8 {[%clk
0:01:01.3]} 39. Nxd7+ {[%clk 0:01:05]} 39... Ke8 {[%clk 0:01:01.7]} 40. Nxf6+
{[%clk 0:01:06.3]} 40... Kd8 {[%clk 0:01:02.1]} 41. Rfd1+ {[%clk 0:01:07.5]}
41... Nbd3 {[%clk 0:01:02.2]} 42. Rxd3+ {[%clk 0:01:07.8]} 42... Nxd3 {[%clk
0:01:02.9]} 43. Qxd3+ {[%clk 0:01:09.7]} 43... Kc8 {[%clk 0:01:04.7]} 44. Rd1
{[%clk 0:01:09.8]} 44... Kb8 {[%clk 0:01:02.8]} 45. Qd6 {[%clk 0:01:10.8]} 45...
a4 {[%clk 0:00:59.4]} 46. Nd5 {[%clk 0:01:11]} 1-0

[Event "*** MasterClass Titled Tuesday Blitz"]
[Site "Chess.com"]
[Date "2017.07.04"]
[Round "9"]
[White "politeplayer"]
[Black "michaelk123"]
[Result "0-1"]
[WhiteElo "2176"]
[BlackElo "2282"]
[TimeControl "180+2"]
[EndTime "15:05:27 PDT"]
[Termination "michaelk123 won by resignation"]

1. e4 {[%clk 0:03:01.9]} 1... c6 {[%clk 0:02:59.1]} 2. d4 {[%clk 0:03:01.8]}
2... d5 {[%clk 0:02:58.4]} 3. exd5 {[%clk 0:03:03.2]} 3... cxd5 {[%clk
0:02:58.5]} 4. c4 {[%clk 0:03:04.5]} 4... Nf6 {[%clk 0:02:56.4]} 5. Nc3 {[%clk
0:03:05.8]} 5... Nc6 {[%clk 0:02:57.2]} 6. Nf3 {[%clk 0:03:06.2]} 6... Bg4
{[%clk 0:02:56.3]} 7. cxd5 {[%clk 0:03:02.4]} 7... Nxd5 {[%clk 0:02:55.7]} 8.
Bb5 {[%clk 0:03:03.2]} 8... e6 {[%clk 0:02:45.1]} 9. Qa4 {[%clk 0:03:02.2]} 9...
Bxf3 {[%clk 0:02:40.5]} 10. Bxc6+ {[%clk 0:03:02]} 10... bxc6 {[%clk 0:02:41.4]}
11. Qxc6+ {[%clk 0:03:02.7]} 11... Ke7 {[%clk 0:02:40.7]} 12. gxf3 {[%clk
0:02:59.5]} 12... Rc8 {[%clk 0:02:34.1]} 13. Nxd5+ {[%clk 0:02:51.3]} 13... exd5
{[%clk 0:02:33.7]} 14. Qa6 {[%clk 0:02:23.9]} 14... f6 {[%clk 0:02:27.8]} 15.
O-O {[%clk 0:02:20.7]} 15... Qd7 {[%clk 0:02:17.2]} 16. Re1+ {[%clk 0:02:06]}
16... Kf7 {[%clk 0:02:17.3]} 17. Bf4 {[%clk 0:02:07.2]} 17... Bb4 {[%clk
0:02:12.6]} 18. Rec1 {[%clk 0:02:04.1]} 18... Qf5 {[%clk 0:02:01.9]} 19. Qb7+
{[%clk 0:01:53.8]} 19... Kg6 {[%clk 0:02:02.4]} 20. Bg3 {[%clk 0:01:29.6]} 20...
Bd2 {[%clk 0:02:02.6]} 21. Rxc8 {[%clk 0:01:22.4]} 21... Rxc8 {[%clk 0:02:04.5]}
22. Qxa7 {[%clk 0:01:13]} 22... Rc2 {[%clk 0:01:43.1]} 23. Qa3 {[%clk
0:01:05.4]} 23... Bc1 {[%clk 0:01:29.1]} 24. Qe7 {[%clk 0:00:56.1]} 24... Qxf3
{[%clk 0:01:03.6]} 25. Qe8+ {[%clk 0:00:56]} 25... Kh6 {[%clk 0:01:03.8]} 26.
Qe1 {[%clk 0:00:46.2]} 26... Bxb2 {[%clk 0:00:56.9]} 27. Rb1 {[%clk 0:00:44.4]}
27... Bxd4 {[%clk 0:00:54.8]} 28. Qf1 {[%clk 0:00:37.4]} 28... Rxa2 {[%clk
0:00:50.9]} 29. Qc1+ {[%clk 0:00:28.5]} 29... Kg6 {[%clk 0:00:48.1]} 30. Qf1
{[%clk 0:00:16.4]} 30... Rd2 {[%clk 0:00:46.3]} 31. Re1 {[%clk 0:00:14.5]} 31...
h5 {[%clk 0:00:45.6]} 32. Qh3 {[%clk 0:00:11.6]} 32... Bxf2+ {[%clk 0:00:44.2]}
33. Kf1 {[%clk 0:00:11.8]} 33... Be3+ {[%clk 0:00:42.7]} 0-1